[Event "SS Manhem Chess Week 2019 Elo tournaments"]
[Site "Molnlycke kulturhus, Biblioteksgatan 2, Molnlycke, Sweden"]
[Date "2019.08.12"]
[Round "3.7"]
[White "Ziegler, Nathalie"]
[Black "Johansson, Eva"]
[Result "0-1"]
[TimeControl "90 minutes for 40 moves + 30 minutes for the rest of the game + 30 seconds per move from move one."]
[WhiteFideId "1715984"]
[BlackFideId "1724584"]
[WhiteElo "1846"]
[BlackElo "1869"]

1. c4 {[%clk 01:30:30]} e5 {[%clk 01:30:59]} 2. d4 {[%clk 01:31:20]} {[%emt
04:10:55]} c6 {[%clk 01:30:33]} {[%emt 24:11:47]} 3. Nc3 {[%clk 01:21:33]}
{[%emt 00:01:26]} exd4 {[%clk 01:27:05]} {[%emt 00:03:58]} 4. Qxd4 {[%clk
01:20:18]} {[%emt 00:01:45]} Nf6 {[%clk 01:25:40]} {[%emt 00:01:54]} 5. Nf3
{[%clk 01:19:39]} {[%emt 00:01:09]} Be7 {[%clk 01:22:49]} {[%emt 00:03:21]} 6.
g3 {[%clk 01:19:52]} {[%emt 00:00:16]} O-O {[%clk 01:22:02]} {[%emt 00:01:18]}
7. Bg2 {[%clk 01:20:13]} {[%emt 00:00:10]} Na6 {[%clk 01:20:10]} {[%emt
00:02:21]} 8. O-O {[%clk 01:12:10]} {[%emt 00:08:33]} Nc7 {[%clk 01:15:08]}
{[%emt 00:05:31]} 9. e4 {[%clk 01:03:54]} {[%emt 00:08:47]} Ne6 {[%clk
01:11:22]} {[%emt 00:04:15]} 10. Qd3 {[%clk 00:45:42]} {[%emt 00:18:41]} d6
{[%clk 01:09:41]} {[%emt 00:02:12]} 11. Rd1 {[%clk 00:43:01]} {[%emt 00:03:12]}
Qc7 {[%clk 01:08:39]} {[%emt 00:01:30]} 12. b3 {[%clk 00:36:34]} {[%emt
00:26:34]} Ng4 {[%clk 00:59:50]} {[%emt 00:09:19]} 13. Qe2 {[%clk 00:30:51]}
{[%emt 00:06:11]} Ne5 {[%clk 00:57:09]} {[%emt 00:03:13]} 14. Ne1 {[%clk
00:30:15]} {[%emt 00:01:07]} Nc5 {[%clk 00:50:52]} {[%emt 00:06:44]} 15. h3
{[%clk 00:29:40]} {[%emt 00:01:08]} f5 {[%clk 00:46:27]} {[%emt 00:04:55]} 16.
f4 {[%clk 00:25:38]} {[%emt 00:04:32]} Ng6 {[%clk 00:46:35]} {[%emt 00:00:20]}
17. Bb2 {[%clk 00:25:13]} {[%emt 00:00:57]} Bf6 {[%clk 00:38:16]} {[%emt
00:08:34]} 18. exf5 {[%clk 00:13:20]} {[%emt 00:12:39]} Bxf5 {[%clk 00:38:05]}
{[%emt 00:00:41]} 19. Kh2 {[%clk 00:12:05]} {[%emt 00:01:44]} Rad8 {[%clk
00:34:02]} {[%emt 00:04:25]} 20. Bf3 {[%clk 00:10:00]} {[%emt 00:02:45]} Rfe8
{[%clk 00:29:51]} {[%emt 00:04:40]} 21. Qg2 {[%clk 00:10:27]} {[%emt 00:00:02]}
Re3 {[%clk 00:28:37]} {[%emt 00:01:44]} 22. Rac1 {[%clk 00:09:38]} {[%emt
00:01:20]} Rde8 {[%clk 00:25:17]} {[%emt 00:03:48]} 23. b4 {[%clk 00:07:24]}
{[%emt 00:02:46]} Nd3 {[%clk 00:19:46]} {[%emt 00:06:00]} 24. Nxd3 {[%clk
00:07:52]} {[%emt 00:00:03]} Bxd3 {[%clk 00:19:42]} {[%emt 00:00:34]} 25. b5
{[%clk 00:05:12]} {[%emt 00:03:10]} Bxc3 {[%clk 00:16:16]} {[%emt 00:03:56]} 26.
Rxc3 {[%clk 00:05:17]} {[%emt 00:00:26]} Re2 {[%clk 00:13:45]} {[%emt
00:03:01]} 27. Rcxd3 {[%clk 00:05:03]} {[%emt 00:00:44]} Rxg2+ {[%clk
00:13:57]} {[%emt 00:00:18]} 28. Kxg2 {[%clk 00:05:31]} {[%emt 00:00:02]} Rd8
{[%clk 00:12:57]} {[%emt 00:01:29]} 29. Ba3 {[%clk 00:04:19]} {[%emt 00:01:43]}
c5 {[%clk 00:13:00]} {[%emt 00:00:24]} 30. Bd5+ {[%clk 00:03:36]} {[%emt
00:01:16]} Kf8 {[%clk 00:12:21]} {[%emt 00:01:09]} 31. Bb2 {[%clk 00:03:47]}
{[%emt 00:00:19]} b6 {[%clk 00:10:10]} {[%emt 00:02:42]} 32. Bc6 {[%clk
00:03:30]} {[%emt 00:00:46]} Ne7 {[%clk 00:08:51]} {[%emt 00:01:43]} 33. Bf3
{[%clk 00:03:50]} {[%emt 00:00:17]} Nf5 {[%clk 00:07:13]} {[%emt 00:02:02]} 34.
Be4 {[%clk 00:03:51]} {[%emt 00:00:34]} Qf7 {[%clk 00:05:52]} {[%emt 00:01:41]}
35. Bd5 {[%clk 00:03:40]} {[%emt 00:00:52]} Qe7 {[%clk 00:04:49]} {[%emt
00:01:31]} 36. Kf2 {[%clk 00:03:11]} {[%emt 00:01:00]} Re8 {[%clk 00:04:58]}
{[%emt 00:00:21]} 37. Bf3 {[%clk 00:03:23]} {[%emt 00:00:18]} Ne3 {[%clk
00:03:59]} {[%emt 00:01:28]} 38. Rc1 {[%clk 00:03:21]} {[%emt 00:00:32]} Nf5
{[%clk 00:02:54]} {[%emt 00:01:37]} 39. Rcd1 {[%clk 00:03:34]} {[%emt
00:00:17]} g6 {[%clk 00:02:05]} {[%emt 00:01:17]} 40. Bc1 {[%clk 00:01:05]}
{[%emt 00:03:00]} Nd4 {[%clk 00:01:21]} {[%emt 00:01:14]} 41. Re3 {[%clk
00:21:27]} {[%emt 00:10:06]} Qf7 {[%clk 00:27:47]} {[%emt 00:03:59]} 42. Rxe8+
{[%clk 00:18:28]} {[%emt 00:03:37]} Kxe8 {[%clk 00:27:37]} {[%emt 00:00:38]} 43.
Re1+ {[%clk 00:14:54]} {[%emt 00:04:06]} Kd8 {[%clk 00:26:05]} {[%emt
00:01:59]} 44. Bd5 {[%clk 00:09:47]} {[%emt 00:05:41]} Qf5 {[%clk 00:25:56]}
{[%emt 00:00:26]} 45. Re4 {[%clk 00:07:09]} {[%emt 00:03:20]} Qxh3 {[%clk
00:24:47]} {[%emt 00:01:39]} 46. Re1 {[%clk 00:04:07]} {[%emt 00:03:32]} Qh2+
{[%clk 00:24:17]} {[%emt 00:00:50]} 47. Bg2 {[%clk 00:03:59]} {[%emt 00:00:47]}
Nf5 {[%clk 00:23:01]} {[%emt 00:01:39]} 48. g4 {[%clk 00:02:23]} {[%emt
00:02:14]} Qg3+ {[%clk 00:22:34]} {[%emt 00:00:41]} 49. Kf1 {[%clk 00:02:52]}
{[%emt 00:00:17]} Qxg4 {[%clk 00:20:05]} {[%emt 00:02:59]} 50. Bc6 {[%clk
00:03:10]} {[%emt 00:00:13]} Qh3+ {[%clk 00:19:01]} {[%emt 00:01:29]} 51. Bg2
{[%clk 00:02:37]} {[%emt 00:01:09]} Qd3+ {[%clk 00:18:42]} {[%emt 00:00:46]} 52.
Kf2 {[%clk 00:02:50]} {[%emt 00:00:18]} Qxc4 {[%clk 00:18:24]} {[%emt
00:00:48]} 53. Bb2 {[%clk 00:03:00]} {[%emt 00:00:19]} Qxf4+ {[%clk 00:17:46]}
{[%emt 00:01:08]} 54. Kg1 {[%clk 00:03:28]} {[%emt 00:00:03]} Nd4 {[%clk
00:16:49]} {[%emt 00:01:24]} 55. Bc1 {[%clk 00:03:43]} {[%emt 00:00:18]} Qg4
{[%clk 00:16:18]} {[%emt 00:00:45]} 56. Kf2 {[%clk 00:03:56]} {[%emt 00:00:33]}
Qf5+ {[%clk 00:14:43]} {[%emt 00:02:01]} 57. Kg1 {[%clk 00:04:09]} {[%emt
00:00:16]} g5 {[%clk 00:12:43]} {[%emt 00:02:23]} 58. Rf1 {[%clk 00:03:47]}
{[%emt 00:01:04]} Ne2+ {[%clk 00:11:44]} {[%emt 00:01:29]} 59. Kh2 {[%clk
00:04:16]} {[%emt 00:00:02]} Qe5+ {[%emt 00:01:49]} 0-1

[Event "SS Manhem Chess Week 2019 Elo tournaments"]
[Site "Molnlycke kulturhus, Biblioteksgatan 2, Molnlycke, Sweden"]
[Date "2019.08.12"]
[Round "3.8"]
[White "Berg, Roy"]
[Black "Peterson, Rolf"]
[Result "1-0"]
[TimeControl "90 minutes for 40 moves + 30 minutes for the rest of the game + 30 seconds per move from move one."]
[WhiteFideId "1711458"]
[BlackFideId "1720511"]
[WhiteElo "1913"]
[BlackElo "1606"]

1. d4 {[%clk 01:30:28]} d6 {[%clk 01:29:22]} {[%emt 00:02:46]} 2. Nf3 {[%clk
01:30:47]} {[%emt 00:00:10]} Nf6 {[%clk 01:29:21]} {[%emt 00:00:31]} 3. c4
{[%clk 01:31:02]} {[%emt 00:00:16]} c6 {[%clk 01:29:38]} {[%emt 00:00:12]} 4.
g3 {[%clk 01:31:22]} {[%emt 00:00:11]} Bg4 {[%clk 01:28:55]} {[%emt 00:01:11]}
5. Nbd2 {[%clk 01:31:33]} {[%emt 00:00:19]} e6 {[%clk 01:29:01]} {[%emt
00:00:24]} 6. Bg2 {[%clk 01:31:44]} {[%emt 00:00:19]} d5 {[%clk 01:28:59]}
{[%emt 00:00:32]} 7. O-O {[%clk 01:29:32]} {[%emt 00:02:42]} Na6 {[%clk
01:24:28]} {[%emt 00:05:01]} 8. a3 {[%clk 01:27:52]} {[%emt 00:02:11]} Be7
{[%clk 01:23:47]} {[%emt 00:01:11]} 9. b4 {[%clk 01:28:09]} {[%emt 00:00:14]}
Nc7 {[%clk 01:21:42]} {[%emt 00:02:34]} 10. Bb2 {[%clk 01:27:40]} {[%emt
00:00:59]} a5 {[%clk 01:13:26]} {[%emt 00:08:46]} 11. bxa5 {[%clk 01:09:59]}
{[%emt 00:18:11]} Rxa5 {[%clk 01:11:54]} {[%emt 00:02:01]} 12. Ne5 {[%clk
01:09:23]} {[%emt 00:01:06]} Bh5 {[%clk 00:58:04]} {[%emt 00:14:20]} 13. f3
{[%clk 01:09:08]} {[%emt 00:00:46]} Qa8 {[%clk 00:56:23]} {[%emt 00:02:10]} 14.
c5 {[%clk 01:07:16]} {[%emt 00:02:23]} Bg6 {[%clk 00:52:05]} {[%emt 00:04:48]}
15. a4 {[%clk 01:04:02]} {[%emt 00:03:44]} Nd7 {[%clk 00:51:36]} {[%emt
00:00:58]} 16. f4 {[%clk 00:52:06]} {[%emt 00:31:21]} Nf6 {[%clk 00:51:51]}
{[%emt 00:00:14]} 17. Bc3 {[%clk 00:50:20]} {[%emt 00:04:07]} Ra7 {[%clk
00:50:57]} {[%emt 00:00:33]} 18. Qb3 {[%clk 00:42:05]} {[%emt 00:08:45]} Nd7
{[%clk 00:49:29]} {[%emt 00:01:58]} 19. Ndf3 {[%clk 00:31:35]} {[%emt
00:11:00]} f6 {[%clk 00:46:17]} {[%emt 00:03:41]} 20. Nxg6 {[%clk 00:31:35]}
{[%emt 00:00:30]} hxg6 {[%clk 00:46:41]} {[%emt 00:00:06]} 21. Nh4 {[%clk
00:29:35]} {[%emt 00:02:31]} Rh6 {[%clk 00:44:37]} {[%emt 00:02:33]} 22. e4
{[%clk 00:29:11]} {[%emt 00:00:54]} Nxc5 {[%clk 00:37:58]} {[%emt 00:07:09]} 23.
dxc5 {[%clk 00:28:30]} {[%emt 00:01:11]} Bxc5+ {[%clk 00:38:18]} {[%emt
00:00:10]} 24. Kh1 {[%clk 00:28:39]} {[%emt 00:00:22]} dxe4 {[%clk 00:35:17]}
{[%emt 00:03:31]} 25. Bxe4 {[%clk 00:28:16]} {[%emt 00:00:52]} f5 {[%clk
00:25:51]} {[%emt 00:09:55]} 26. Bg2 {[%clk 00:25:48]} {[%emt 00:02:58]} Kf7
{[%clk 00:24:48]} {[%emt 00:01:33]} 27. Qc4 {[%clk 00:20:15]} {[%emt 00:06:03]}
Qf8 {[%clk 00:21:36]} {[%emt 00:03:42]} 28. Bd4 {[%clk 00:16:33]} {[%emt
00:04:12]} Bxd4 {[%clk 00:20:39]} {[%emt 00:01:26]} 29. Qxd4 {[%clk 00:16:58]}
{[%emt 00:00:05]} Ra5 {[%clk 00:19:35]} {[%emt 00:01:34]} 30. Qb6 {[%clk
00:14:49]} {[%emt 00:02:38]} Qa8 {[%clk 00:15:59]} {[%emt 00:04:06]} 31. Qxc7+
{[%clk 00:15:06]} {[%emt 00:00:13]} Kf6 {[%clk 00:09:10]} {[%emt 00:07:19]} 32.
Nf3 {[%clk 00:15:14]} {[%emt 00:00:23]} Rh8 {[%clk 00:07:49]} {[%emt 00:01:50]}
33. Ng5 {[%clk 00:15:24]} {[%emt 00:00:20]} Rf8 {[%clk 00:07:53]} {[%emt
00:00:26]} 34. Nh7# {[%clk 00:15:32]} {[%emt 00:00:23]} 1-0

[Event "SS Manhem Chess Week 2019 Elo tournaments"]
[Site "Molnlycke kulturhus, Biblioteksgatan 2, Molnlycke, Sweden"]
[Date "2019.08.16"]
[Round "7.1"]
[White "Rasti, Arvin"]
[Black "Bengtsson, Jonas"]
[Result "1-0"]
[TimeControl "90 minutes for 40 moves + 30 minutes for the rest of the game + 30 seconds per move from move one."]
[WhiteFideId "1741160"]
[BlackFideId "1715135"]
[WhiteElo "2116"]
[BlackElo "2145"]

1. d4 {[%clk 01:30:57]} {[%emt 00:00:03]} Nf6 {[%clk 01:30:59]} 2. c4 {[%clk
01:30:57]} e6 {[%clk 01:30:59]} 3. Nc3 {[%clk 01:30:57]} Bb4 {[%clk 01:30:59]}
4. Nf3 {[%clk 01:30:57]} O-O {[%clk 01:30:59]} 5. Qc2 {[%clk 01:30:57]} c5
{[%clk 01:30:59]} 6. dxc5 {[%clk 01:30:57]} Na6 {[%clk 01:30:59]} 7. g3 {[%clk
01:30:57]} Nxc5 {[%clk 01:30:59]} 8. Bg2 {[%clk 01:30:57]} Nce4 {[%clk
01:30:59]} 9. O-O {[%clk 01:30:57]} Nxc3 {[%clk 01:30:59]} 10. bxc3 {[%clk
01:30:57]} Be7 {[%clk 01:30:59]} 11. e4 {[%clk 01:30:57]} d6 {[%clk 01:30:59]}
12. e5 {[%clk 01:30:57]} dxe5 {[%clk 01:30:59]} 13. Nxe5 {[%clk 01:30:57]} Qc7
{[%clk 01:30:59]} 14. Qe2 {[%clk 01:30:57]} Nd7 {[%clk 01:30:59]} 15. Bf4
{[%clk 01:30:57]} Nxe5 {[%clk 01:30:59]} 16. Bxe5 {[%clk 01:30:57]} Bd6 {[%clk
01:30:59]} 17. Bxd6 {[%clk 01:30:57]} Qxd6 {[%clk 01:30:59]} 18. Rfd1 {[%clk
01:30:57]} Qc7 {[%clk 01:30:59]} 19. Rab1 {[%clk 01:30:57]} Rb8 {[%clk
01:30:59]} 20. Qe3 {[%clk 01:30:57]} b6 {[%clk 01:30:59]} 21. c5 {[%clk
01:30:57]} Bd7 {[%clk 01:30:59]} 22. cxb6 {[%clk 01:30:57]} axb6 {[%clk
01:30:59]} 23. Qd4 {[%clk 01:30:57]} Bc6 {[%clk 01:30:59]} 24. Qc4 {[%clk
01:30:57]} Rfc8 {[%clk 01:30:59]} 25. Bxc6 {[%clk 01:30:57]} Qxc6 {[%clk
01:30:59]} 26. Rd8+ {[%clk 01:30:57]} {clock times in the PGN file are wrong}
1-0

[Event "SS Manhem Chess Week 2019 Elo tournaments"]
[Site "Molnlycke kulturhus, Biblioteksgatan 2, Molnlycke, Sweden"]
[Date "2019.08.16"]
[Round "7.5"]
[White "Hattab, Hashim"]
[Black "Bohlin, Jan"]
[Result "1/2-1/2"]
[TimeControl "90 minutes for 40 moves + 30 minutes for the rest of the game + 30 seconds per move from move one."]
[WhiteFideId "1721798"]
[BlackFideId "1758616"]
[WhiteElo "1868"]
[BlackElo "1752"]

1. d4 {[%clk 01:30:58]} Nf6 {[%clk 01:30:54]} {[%emt 00:00:06]} 2. c4 {[%clk
01:31:20]} {[%emt 00:00:08]} e6 {[%clk 01:31:19]} {[%emt 00:00:05]} 3. Nc3
{[%clk 01:31:16]} {[%emt 00:00:33]} Bb4 {[%clk 01:31:44]} {[%emt 00:00:05]} 4.
e3 {[%clk 01:31:39]} {[%emt 00:00:08]} O-O {[%clk 01:31:28]} {[%emt 00:00:47]}
5. Bd3 {[%clk 01:32:04]} {[%emt 00:00:04]} c5 {[%clk 01:31:48]} {[%emt
00:00:10]} 6. a3 {[%clk 01:32:22]} {[%emt 00:00:13]} Bxc3+ {[%clk 01:32:10]}
{[%emt 00:00:08]} 7. bxc3 {[%clk 01:32:44]} {[%emt 00:00:06]} Nc6 {[%clk
01:32:20]} {[%emt 00:00:21]} 8. Ne2 {[%clk 01:31:20]} {[%emt 00:01:54]} b6
{[%clk 01:32:23]} {[%emt 00:00:27]} 9. e4 {[%emt 00:01:15]} Ne8 {[%clk
01:32:11]} 10. Be3 {[%emt 00:08:41]} d6 {[%clk 01:23:32]} {[%emt 00:03:28]} 11.
f4 {[%clk 01:28:20]} {[%emt 00:00:55]} f5 {[%clk 01:21:20]} {[%emt 00:02:43]}
12. Ng3 {[%clk 01:18:58]} Qh4 {[%clk 01:03:45]} {[%emt 00:27:58]} 13. exf5
{[%clk 01:12:30]} {[%emt 00:06:57]} exf5 {[%clk 01:03:43]} {[%emt 00:00:32]} 14.
d5 {[%clk 01:12:30]} {[%emt 00:00:30]} Na5 {[%clk 01:00:50]} {[%emt 00:03:23]}
15. O-O {[%clk 01:12:28]} {[%emt 00:00:32]} g6 {[%clk 00:55:08]} {[%emt
00:06:13]} 16. Bf2 {[%clk 01:11:56]} {[%emt 00:01:01]} Qd8 {[%clk 00:47:44]}
{[%emt 00:07:55]} 17. Re1 {[%clk 01:10:36]} {[%emt 00:01:48]} Ba6 {[%clk
00:45:17]} {[%emt 00:02:58]} 18. Qa4 {[%clk 01:02:49]} {[%emt 00:08:15]} Ng7
{[%clk 00:40:59]} {[%emt 00:04:50]} 19. Re2 {[%clk 00:58:22]} {[%emt 00:04:56]}
Rf7 {[%clk 00:39:37]} {[%emt 00:01:53]} 20. Rae1 {[%clk 00:57:44]} {[%emt
00:01:06]} Qd7 {[%clk 00:39:32]} {[%emt 00:00:37]} 21. Qc2 {[%clk 00:53:42]}
{[%emt 00:04:30]} Bxc4 {[%clk 00:36:44]} {[%emt 00:03:20]} 22. Bxc4 {[%clk
00:53:28]} {[%emt 00:00:43]} Nxc4 {[%clk 00:37:13]} {[%emt 00:00:02]} 23. a4
{[%clk 00:53:04]} {[%emt 00:00:53]} a6 {[%clk 00:29:24]} {[%emt 00:08:19]} 24.
Nf1 {[%clk 00:51:10]} {[%emt 00:02:23]} b5 {[%clk 00:27:48]} {[%emt 00:02:08]}
25. Bh4 {[%clk 00:50:54]} {[%emt 00:00:45]} Re8 {[%clk 00:21:50]} {[%emt
00:06:29]} 26. Rxe8+ {[%clk 00:50:39]} {[%emt 00:00:45]} Nxe8 {[%clk 00:22:08]}
{[%emt 00:00:12]} 27. axb5 {[%clk 00:50:16]} {[%emt 00:00:53]} axb5 {[%clk
00:22:03]} {[%emt 00:00:35]} 28. Qa2 {[%clk 00:48:55]} {[%emt 00:01:50]} Nf6
{[%clk 00:18:02]} {[%emt 00:04:31]} 29. Ng3 {[%clk 00:40:42]} {[%emt 00:08:41]}
Kg7 {[%clk 00:16:00]} {[%emt 00:02:32]} 30. Qa8 {[%clk 00:39:19]} {[%emt
00:01:54]} Nb6 {[%clk 00:12:48]} {[%emt 00:03:42]} 31. Bxf6+ {[%clk 00:32:11]}
{[%emt 00:07:37]} Rxf6 {[%clk 00:11:52]} {[%emt 00:01:26]} 32. Qb8 {[%clk
00:31:53]} {[%emt 00:00:48]} Nxd5 {[%clk 00:11:14]} {[%emt 00:01:08]} 33. Re8
{[%clk 00:32:06]} {[%emt 00:00:17]} Rf7 {[%clk 00:08:08]} {[%emt 00:03:36]} 34.
h4 {[%clk 00:29:45]} {[%emt 00:02:50]} Nf6 {[%clk 00:05:16]} {[%emt 00:03:24]}
35. Re1 {[%clk 00:26:21]} {[%emt 00:03:53]} Rf8 {[%clk 00:04:10]} {[%emt
00:01:36]} 36. Qb6 {[%clk 00:26:09]} {[%emt 00:00:42]} Nd5 {[%clk 00:04:02]}
{[%emt 00:00:39]} 37. Qa5 {[%clk 00:26:03]} {[%emt 00:00:35]} Nxf4 {[%clk
00:03:56]} {[%emt 00:00:36]} 38. Nf1 {[%clk 00:25:28]} {[%emt 00:01:04]} Re8
{[%clk 00:03:11]} {[%emt 00:01:16]} 39. Rxe8 {[%clk 00:24:55]} {[%emt
00:01:03]} Qxe8 {[%clk 00:03:40]} {[%emt 00:00:01]} 40. Qc7+ {[%clk 00:25:06]}
{[%emt 00:00:19]} Qf7 {[%clk 00:03:21]} {[%emt 00:00:49]} 41. Qxd6 {[%clk
00:25:05]} {[%emt 00:00:30]} Ne2+ {[%clk 00:00:31]} {[%emt 00:03:20]} 42. Kh2
{[%clk 00:24:40]} {[%emt 00:00:54]} Nxc3 {[%clk 00:23:15]} {[%emt 00:07:47]} 43.
Qxc5 {[%clk 00:54:13]} {[%emt 00:00:57]} Ne4 {[%clk 00:19:22]} {[%emt
00:04:23]} 44. Qxb5 {[%clk 00:54:00]} {[%emt 00:00:42]} Qc7+ {[%clk 00:17:59]}
{[%emt 00:01:53]} 45. Kg1 {[%clk 00:52:55]} {[%emt 00:01:34]} Qc5+ {[%clk
00:18:11]} {[%emt 00:00:19]} 46. Qxc5 {[%clk 00:53:19]} {[%emt 00:00:06]} Nxc5
{[%clk 00:18:40]} 47. g3 {[%clk 00:53:28]} {[%emt 00:00:21]} Ne4 {[%clk
00:18:02]} {[%emt 00:01:09]} 48. Kg2 {[%clk 00:53:35]} {[%emt 00:00:22]} Kf6
{[%clk 00:17:23]} {[%emt 00:01:09]} 1/2-1/2

[Event "SS Manhem Chess Week 2019 Elo tournaments"]
[Site "Molnlycke kulturhus, Biblioteksgatan 2, Molnlycke, Sweden"]
[Date "2019.08.16"]
[Round "7.6"]
[White "Johansson, Eva"]
[Black "Degerfeldt, Sven"]
[Result "0-1"]
[TimeControl "90 minutes for 40 moves + 30 minutes for the rest of the game + 30 seconds per move from move one."]
[WhiteFideId "1724584"]
[BlackFideId "1717430"]
[WhiteElo "1869"]
[BlackElo "1899"]

1. d4 {[%clk 01:30:54]} {[%emt 00:00:05]} d5 {[%clk 01:30:48]} {[%emt
00:00:13]} 2. c4 {[%clk 01:31:15]} {[%emt 00:00:09]} e6 {[%clk 01:31:06]}
{[%emt 00:00:12]} 3. Nf3 {[%clk 01:31:20]} {[%emt 00:00:25]} a6 {[%clk
01:31:10]} {[%emt 00:00:26]} 4. Qc2 {[%clk 01:29:48]} {[%emt 00:02:02]} Nf6
{[%clk 01:31:09]} {[%emt 00:00:31]} 5. g3 {[%clk 01:29:42]} {[%emt 00:00:35]}
c6 {[%clk 01:25:28]} {[%emt 00:06:11]} 6. Bg2 {[%clk 01:29:21]} {[%emt
00:00:51]} Nbd7 {[%clk 01:20:22]} {[%emt 00:05:36]} 7. O-O {[%clk 01:29:28]}
{[%emt 00:00:23]} Bd6 {[%clk 01:20:37]} {[%emt 00:00:15]} 8. Nbd2 {[%clk
01:26:12]} {[%emt 00:03:48]} O-O {[%clk 01:20:34]} {[%emt 00:00:32]} 9. e4 Nxe4
{[%clk 01:19:52]} 10. Nxe4 {[%clk 01:24:51]} {[%emt 00:00:10]} dxe4 {[%clk
01:19:37]} {[%emt 00:00:45]} 11. Qxe4 {[%clk 01:25:07]} {[%emt 00:00:14]} Re8
{[%clk 01:10:32]} {[%emt 00:09:35]} 12. Bg5 {[%clk 01:17:04]} {[%emt 00:08:29]}
f6 {[%clk 01:09:15]} {[%emt 00:01:50]} 13. Be3 {[%clk 01:15:05]} {[%emt
00:02:22]} Qe7 {[%clk 01:04:57]} {[%emt 00:04:55]} 14. Rfd1 {[%clk 01:10:19]}
{[%emt 00:05:14]} Qf7 {[%clk 01:04:41]} {[%emt 00:00:48]} 15. Qc2 {[%clk
01:07:04]} {[%emt 00:03:45]} Qf8 {[%clk 00:42:27]} {[%emt 00:22:44]} 16. Nd2
{[%clk 01:02:29]} {[%emt 00:05:02]} f5 {[%clk 00:41:27]} {[%emt 00:01:34]} 17.
f4 {[%clk 00:56:20]} {[%emt 00:06:39]} Nf6 {[%clk 00:39:06]} {[%emt 00:02:45]}
18. h3 {[%clk 00:50:40]} Kh8 {[%clk 00:36:42]} {[%emt 00:09:10]} 19. Nb3 {[%clk
00:46:40]} Qf7 {[%clk 00:32:06]} {[%emt 00:09:36]} 20. Bf2 {[%clk 00:43:52]} h6
{[%clk 00:31:06]} {[%emt 00:04:48]} 21. Re1 {[%clk 00:37:04]} Rg8 {[%clk
00:29:12]} {[%emt 00:09:41]} 22. Qc3 {[%clk 00:33:37]} Rb8 {[%clk 00:26:52]}
{[%emt 00:06:49]} 23. Rad1 {[%clk 00:32:15]} Bd7 {[%clk 00:23:48]} {[%emt
00:05:25]} 24. Nc5 {[%clk 00:29:49]} Bxc5 {[%clk 00:22:01]} {[%emt 00:05:14]}
25. dxc5 {[%clk 00:30:11]} Rbe8 {[%clk 00:22:18]} {[%emt 00:00:21]} 26. Qe5
{[%clk 00:27:52]} Bc8 {[%clk 00:22:07]} {[%emt 00:03:30]} 27. Rd6 {[%clk
00:23:51]} Kh7 {[%clk 00:21:21]} {[%emt 00:05:46]} 28. Kh2 {[%clk 00:22:10]}
Ref8 {[%clk 00:17:59]} {[%emt 00:06:03]} 29. Bf3 {[%clk 00:19:47]} g5 {[%clk
00:17:21]} {[%emt 00:04:00]} 30. Bg2 {[%clk 00:16:19]} Rg6 {[%clk 00:13:21]}
{[%emt 00:08:28]} 31. Rd3 {[%clk 00:12:56]} Rfg8 {[%clk 00:13:27]} {[%emt
00:04:17]} 32. Rg1 {[%clk 00:09:26]} R6g7 {[%clk 00:11:54]} {[%emt 00:06:02]}
33. Bd4 {[%clk 00:08:20]} Rg6 {[%clk 00:11:56]} {[%emt 00:02:04]} 34. fxg5
{[%clk 00:06:45]} hxg5 {[%clk 00:11:59]} {[%emt 00:02:32]} 35. Bf3 {[%clk
00:04:06]} Rh6 {[%clk 00:11:46]} {[%emt 00:03:51]} 36. g4 {[%clk 00:03:34]}
{[%emt 00:01:03]} Qg6 {[%clk 00:03:25]} {[%emt 00:08:51]} 37. Qe2 {[%clk
00:01:31]} {[%emt 00:02:29]} Nxg4+ {[%clk 00:02:40]} {[%emt 00:01:21]} 38. Rxg4
{[%emt 00:00:39]} {time forfeit} 0-1